Cogmind - Beta 10 X2 @@@ ROGUE MODE // 2020.07.21 @ 19:18:27 Player: spruce (@macklemurr) Result: Destroyed by G-47 Trooper with Particle Gun Performance ------------- Evolutions (1) 500 Regions Visited (4) 800 Robots Destroyed (74) 370 Value Destroyed (1701) 1701 Prototype IDs (3) 60 Alien Tech Used (0) 0 Bonus (13) 13 TOTAL SCORE: 3444 Bonus ------- High Alert Combat Kills 13 Cogmind --------- Core Integrity 0/400 Matter 258/300 Energy 214/250 System Corruption 0% Temperature Cool (138) Movement Walking (210) Ox3 Location -9/Mines Parts ------- > --- POWER (1) -------- Ion Engine > --- PROPULSION (2) --- Aluminum Leg Aluminum Leg > --- UTILITY (4) ------ Heat Sink Large Storage Unit Large Storage Unit Large Storage Unit > --- WEAPON (2) ------- Particle Cannon Particle Cannon > --- INVENTORY (22) --- Aluminum Leg Aluminum Leg Improved Sensor Array Improved Signal Interpreter Improved Terrain Scanner Hacking Suite Heavy Assault Rifle Peak State ------------ > --- POWER ------------ Light Nuclear Core > --- PROPULSION ------- Aluminum Leg Aluminum Leg > --- UTILITY ---------- Cooling System Large Storage Unit Targeting Computer Shield Generator > --- WEAPON ----------- Improved Medium Laser Heavy Assault Rifle > --- INVENTORY -------- Aluminum Leg Large Storage Unit Improved Sensor Array Improved Signal Interpreter Improved Terrain Scanner Hacking Suite Improved Medium Laser Particle Cannon Particle Cannon Rocket Launcher [Rating: 18] Favorites ----------- Power Light Nuclear Core Engine Light Ion Engine Power Core Light Nuclear Core Propulsion Aluminum Leg Treads Light Treads Leg Aluminum Leg Utility Large Storage Unit Device Cooling System Storage Large Storage Unit Processor Targeting Computer Protection Weapon Shielding Weapon Small Laser Energy Gun Small Laser Energy Cannon Particle Cannon Ballistic Gun Assault Rifle Launcher Rocket Launcher Build | -11 -10 -10 -9 -9 ------- Run | Scr Mat Min Mat Min Slots Evolved 2 | . . . 2 . Power . | . . . . . Propulsion . | . . . . . Utility 2 | . . . 2 . Weapon . | . . . . . Parts Attached 62 | 7 15 . 27 13 Power 6 | 1 1 . 3 1 Engine 3 | 1 . . 1 1 Core 3 | . 1 . 2 . Reactor . | . . . . . Propulsion 18 | 2 5 . 7 4 Treads 3 | . 1 . 2 . Leg 15 | 2 4 . 5 4 Wheel . | . . . . . Hover . | . . . . . Flight . | . . . . . Utility 17 | 2 5 . 8 2 Device 6 | 1 1 . 3 1 Storage 5 | 1 2 . 1 1 Processor 3 | . . . 3 . Hackware . | . . . . . Protection 3 | . 2 . 1 . Artifact . | . . . . . Weapon 21 | 2 4 . 9 6 Energy Gun 9 | . 3 . 4 2 Energy Cannon 2 | . . . . 2 Ballistic Gun 7 | 2 1 . 4 . Ballistic Cannon . | . . . . . Launcher 3 | . . . 1 2 Special Weapon . | . . . . . Impact Weapon . | . . . . . Slashing Weapon . | . . . . . Piercing Weapon . | . . . . . Special Melee Weapon . | . . . . . Unidentified Prototypes 1 | . . . 1 . Parts Lost 21 | . 4 . 8 9 Power 3 | . . . 2 1 Propulsion 7 | . 1 . 4 2 Utility 5 | . 1 . 2 2 Weapon 6 | . 2 . . 4 Highest Loss Streak 7 | . 2 . 3 7 Average Slot Usage (%) 95 | . 98 100 94 89 Engine 2 | . 1 . 2 11 Core 9 | . 12 14 8 . Leg 22 | . 27 28 18 20 Device 8 | . 4 . 13 9 Storage 14 | . 14 14 12 22 Processor 3 | . . . 7 . Protection 8 | . 8 14 7 4 Energy Gun 8 | . 12 14 6 1 Energy Cannon 1 | . . . . 10 Ballistic Gun 13 | . 15 14 15 4 Naked Turns . | . . . . . Heaviest Build 62 | 12 27 25 46 62 Greatest Support 23 | 20 20 20 23 20 Greatest Overweight (x) 3 | . 2 1 2 3 Average Overweight (x) 1 | . . 1 1 2 Largest Inventory Capacity 22 | 6 10 10 16 22 Average Capacity 10 | 5 8 10 10 16 Most Carried 13 | 6 10 10 10 13 Average Carried 8 | 3 7 10 9 10 Final Capacity 22 | 6 10 10 16 22 Final Carried 10 | 6 10 10 10 7 Class Distribution -------------------- 77% | Scavenger-Mutant 22% | Mutant Dominant Class ---------------- Scavenger-Mutant | -10/Materials Scavenger-Mutant | -10/Mines Scavenger-Mutant | -9/Materials Scavenger-Mutant | -9/Mines Resources | -11 -10 -10 -9 -9 ----------- Run | Scr Mat Min Mat Min Matter Collected 1354 | 286 301 34 589 144 Remotely . | . . . . . Salvage Created 2236 | 87 694 . 1075 380 Parts 144 | 6 44 . 76 18 Haulers Intercepted 3 | . 1 . 2 . Recyclers Shooed 3 | 1 1 . 1 . Parts Field Recycled . | . . . . . Retrieved Matter . | . . . . . Parts Self-Destructed . | . . . . . Prevented . | . . . . . Kills | -11 -10 -10 -9 -9 ------- Run | Scr Mat Min Mat Min Combat Hostiles Destroyed 61 | . 13 . 31 17 Guns 48 | . 13 . 28 7 Cannons 5 | . . . . 5 AOE 8 | . . . 3 5 Classes Destroyed 13 | 2 5 . 2 4 Worker 2 | . 2 . . . Tunneler 2 | 1 . . 1 . Hauler 3 | . 1 . 2 . Recycler 1 | 1 . . . . Operator 1 | . 1 . . . Watcher 4 | . 2 . 2 . Swarmer 14 | . . . 14 . Grunt 30 | . 13 . 12 5 Brawler 1 | . . . . 1 Duelist 1 | . . . . 1 Sentry 5 | . . . 5 . Demolisher 1 | . . . . 1 Assembled 9 | . . . . 9 Best Kill Streak 10 | 2 8 . 7 10 Combat Bots Only 10 | . 6 . 6 10 Max Kills in Single Turn 3 | 1 1 . 3 2 Gunslinging 1 | . . . 1 . Exploded 3 | . . . 3 2 Melee . | . . . . . Uniques/NPCs Destroyed . | . . . . . Combat | -11 -10 -10 -9 -9 -------- Run | Scr Mat Min Mat Min Damage Taken 3085 | . 871 . 1263 951 Core 551 | . 150 . 167 234 Absorbed by Shields 170 | . . . 170 . Core Remaining (%) 70 | 100 . 40 . . Volleys Fired 193 | 8 71 . 79 35 Largest 2 | 2 2 . 2 2 Hottest 136 | 40 60 . 79 136 Shots Fired 361 | 16 134 . 155 56 Gun 330 | 16 134 . 154 26 Cannon 26 | . . . . 26 Launcher 5 | . . . 1 4 Special . | . . . . . Kinetic 212 | 16 80 . 105 11 Thermal 127 | . 41 . 49 37 Explosive 5 | . . . 1 4 Electromagnetic 17 | . 13 . . 4 Robot Hit Streak 12 | 5 11 . 12 6 Robot Miss Streak 8 | 1 8 . 5 3 Penetration Max . | . . . . . Secondary Targets 7 | . 2 . 5 . Max Gunslinging Chain 1 | . 1 . 1 . Shots Hit Robots 240 | 12 92 . 105 31 Core Hits 127 | 4 42 . 54 27 Critical Hits 2 | . 1 . 1 . Critical Kills . | . . . . . Critical Parts Destroyed 2 | . 1 . 1 . Melee Attacks . | . . . . . Impact . | . . . . . Slashing . | . . . . . Piercing . | . . . . . Sneak Attacks . | . . . . . Combat Hostiles . | . . . . . Follow-up Attacks . | . . . . . Damage Inflicted 3912 | 96 987 . 1788 1041 Guns 2955 | 96 987 . 1582 290 Cannons 205 | . . . . 205 Explosions 749 | . . . 203 546 Melee . | . . . . . Ramming 3 | . . . 3 . Kinetic 1775 | 96 594 . 977 108 Thermal 1240 | . 295 . 605 340 Explosive 749 | . . . 203 546 Electromagnetic 145 | . 98 . . 47 Impact . | . . . . . Slashing . | . . . . . Piercing . | . . . . . Highest Corruption 4 | . 4 4 . . Average Corruption 3 | . 3 4 . . Corruption Purged . | . . . . . Effects 30 | . 20 10 . . Message Errors 5 | . 3 2 . . Matter Fused 5 | . 2 3 . . Heat Flow Errors 4 | . 2 2 . . Energy Discharges 7 | . 6 1 . . Data Loss (minor) 7 | . 5 2 . . Targeting Errors 2 | . 2 . . . Overload Shots . | . . . . . Overflow Damage 19 | . . . . 19 Projectiles . | . . . . . Explosions 19 | . . . . 19 Melee . | . . . . . Knockbacks . | . . . . . Impact . | . . . . . Kinetic . | . . . . . Secondary . | . . . . . Self-Inflicted Damage 38 | . . . . 38 Shots 1 | . . . . 1 Rammed 1 | . . . 1 . Targets Rammed 1 | . . . 1 . Kicked . | . . . . . Crushed . | . . . . . Highest Temperature 274 | . 274 107 156 217 Average Temperature 66 | . 63 54 62 82 Received Heat Transfer 851 | . 465 . 308 78 Siege Activations . | . . . . . Robots Corrupted 1 | . 1 . . . Combat Hostiles . | . . . . . Parts Fried 2 | . 2 . . . Impact Corruptions . | . . . . . Robots Melted . | . . . . . Combat Hostiles . | . . . . . Parts Melted 2 | . . . 2 . Heat Transferred 2710 | . 675 . 1369 666 Parts Sabotaged . | . . . . . Parts Stolen . | . . . . . Parts Stripped . | . . . . . Power Chain Reactions . | . . . . . Missiles Intercepted . | . . . . . Alert | -11 -10 -10 -9 -9 ------- Run | Scr Mat Min Mat Min Peak Influence 431 | 10 348 78 431 288 Average Influence 169 | 4 201 55 186 237 Maximum Alert Level 2 | . 1 . 2 1 Low Security (%) 54 | 100 41 100 54 3 Level 1 37 | . 58 . 26 96 Level 2 7 | . . . 18 . Level 3 . | . . . . . Level 4 . | . . . . . Level 5 . | . . . . . High Security . | . . . . . Max Security . | . . . . . Squads Dispatched 8 | . 5 . 3 . Investigation 6 | . 4 . 2 . Extermination . | . . . . . Reinforcement 2 | . 1 . 1 . Assault . | . . . . . Garrison . | . . . . . Intercept . | . . . . . Construction Impeded . | . . . . . Haulers Reinforced . | . . . . . Stealth | -11 -10 -10 -9 -9 --------- Run | Scr Mat Min Mat Min Distress Signals 3 | . 2 . 1 . Communications Jammed . | . . . . . Distress Signals . | . . . . . Times Spotted 104 | . 32 . 48 24 Peak Tracking Total 10 | . 7 . 6 10 Tactical Retreats 10 | . 7 . 3 . Traps | -11 -10 -10 -9 -9 ------- Run | Scr Mat Min Mat Min Traps Triggered 9 | . 7 . 2 . Indirectly . | . . . . . Trap Hack Attempts . | . . . . . Triggered . | . . . . . Disarmed . | . . . . . Reprogrammed . | . . . . . Reused . | . . . . . Traps Extracted . | . . . . . Installed . | . . . . . Triggered 1 | . 1 . . . Machines | -11 -10 -10 -9 -9 ---------- Run | Scr Mat Min Mat Min Machines Disabled 2 | . 1 . 1 . Max in Single Turn 1 | . 1 . 1 . Machines Sabotaged . | . . . . . Garrisons Compromised . | . . . . . Overloaded Fab Kills . | . . . . . Fab Network Shutdowns . | . . . . . Hacking | -11 -10 -10 -9 -9 --------- Run | Scr Mat Min Mat Min Machines Accessed 13 | . 6 . 7 . Terminals 8 | . 4 . 4 . Fabricators . | . . . . . Repair Stations . | . . . . . Recycling Units 4 | . 2 . 2 . Scanalyzers 1 | . . . 1 . Garrison Access . | . . . . . Total Hacks 27 | . 12 . 15 . Successful 19 | . 10 . 9 . Failed 8 | . 2 . 6 . Catastrophic 1 | . . . 1 . Database Lockouts . | . . . . . Manual 16 | . 8 . 8 . Terminals 21 | . 10 . 11 . Fabricators . | . . . . . Repair Stations . | . . . . . Recycling Units 4 | . 2 . 2 . Scanalyzers 2 | . . . 2 . Garrison Access . | . . . . . Terminal Hacks 9 | . 4 . 5 . Prototype ID Bank 1 | . 1 . . . Terminal Index 2 | . 1 . 1 . Alert Level 2 | . . . 2 . Unreport Threat 2 | . . . 2 . Zone Layout 2 | . 2 . . . Fabricator Hacks . | . . . . . Repair Station Hacks . | . . . . . Recycling Unit Hacks . | . . . . . Scanalyzer 2 | . . . 2 . Insert Component 1 | . . . 1 . Analyze 1 | . . . 1 . Garrison Access Hacks . | . . . . . Unauthorized Hacks 8 | . 6 . 2 . Terminals 4 | . 4 . . . Track 1 | . 1 . . . Botnet 3 | . 3 . . . Fabricators . | . . . . . Repair Stations . | . . . . . Recycling Units 4 | . 2 . 2 . Tunnel 4 | . 2 . 2 . Scanalyzers . | . . . . . Garrison Access . | . . . . . Data Cores Recovered 1 | . 1 . . . Used . | . . . . . Hacking Detections 7 | . 2 . 5 . Full Trace Events . | . . . . . Feedback Events . | . . . . . Feedback Blocked . | . . . . . Robot Schematics Acquired . | . . . . . Robots Built . | . . . . . Matter . | . . . . . Time . | . . . . . Total Robot Build Rating . | . . . . . Part Schematics Acquired 1 | . . . 1 . Parts Built . | . . . . . Matter . | . . . . . Time . | . . . . . Total Part Build Rating . | . . . . . Parts Repaired . | . . . . . Time . | . . . . . Parts Recycled . | . . . . . Recycled Matter . | . . . . . Retrieved Matter . | . . . . . Retrieved Components . | . . . . . Parts Scanalyzed 1 | . . . 1 . Part Schematics Acquired 1 | . . . 1 . Parts Damaged . | . . . . . Bothacking | -11 -10 -10 -9 -9 ------------ Run | Scr Mat Min Mat Min Used RIF Installer . | . . . . . Robots Hacked . | . . . . . Non-combat . | . . . . . Combat . | . . . . . Robot Hacks Applied . | . . . . . Relay Couplers Released . | . . . . . Robots Rewired . | . . . . . Allies Hacked . | . . . . . Hacks Repelled . | . . . . . Allies | -11 -10 -10 -9 -9 -------- Run | Scr Mat Min Mat Min Total Allies . | . . . . . Largest Group . | . . . . . Highest-Rated Group . | . . . . . Highest-Rated Ally . | . . . . . Total Orders . | . . . . . Ally Attacks . | . . . . . Total Damage . | . . . . . Kills . | . . . . . Allies Corrupted . | . . . . . Allies Melted . | . . . . . Intel | -11 -10 -10 -9 -9 ------- Run | Scr Mat Min Mat Min Robot Analysis Total . | . . . . . Derelict Logs Recovered 1 | . . 1 . . Drone Launches . | . . . . . Drone Recoveries . | . . . . . Exploration | -11 -10 -10 -9 -9 ------------- Run | Scr Mat Min Mat Min Turns Passed 3589 | 132 940 560 1554 403 Spaces Moved 1790 | 71 477 374 708 160 Core 17 | 17 . . . . Treads 125 | . . . 122 3 Legs 1648 | 54 477 374 586 157 Wheels . | . . . . . Hover . | . . . . . Flight . | . . . . . Fastest Speed 50 | 50 120 150 150 180 Average Speed 152 | 103 139 150 160 180 Slowest Speed 210 | 120 180 150 200 210 Overloaded Moves . | . . . . . Propulsion Burnouts . | . . . . . Robots Hopped . | . . . . . Cave-ins Triggered . | . . . . . Exploration Rate (%) 57 | 4 79 97 66 43 Regions Visited 4 Branch Regions 2 Pre-discovered Areas 4 | . 2 . 2 . Known Exits Taken . | . . . . . Unknown Exits Taken 4 | 1 1 1 1 . Scrap Searched 4 | . . 4 . . Spaces Dug 4 | . . . 4 . Terrain Destroyed 51 | . . . 4 47 Melee . | . . . . . Projectile . | . . . . . AOE 51 | . . . 4 47 Actions | -11 -10 -10 -9 -9 --------- Run | Scr Mat Min Mat Min Total 2311 | 116 631 373 974 217 Wait 190 | 19 40 . 128 3 Move 1786 | 70 476 373 707 160 Hop . | . . . . . Pick Up 44 | 12 14 . 13 5 Fast Attach 21 | 1 5 . 13 2 Attach 29 | 6 6 . 9 8 Detach . | . . . . . Swap 12 | . 4 . 5 3 Drop 35 | . 15 . 19 1 Fire 193 | 8 71 . 79 35 Melee . | . . . . . Ram . | . . . . . Kick . | . . . . . Crush 1 | . . . 1 . Escape Stasis . | . . . . . Rewire . | . . . . . Trap . | . . . . . Miscellaneous . | . . . . . Route ------- -11/Scrapyard -10/Materials (discovered 4 exits: *Mat x2 / [*Min x2]) -10/Mines (discovered 2 exits: *Mat x2) -9/Materials (discovered 2 exits: [*Mat] / [*Min]) -9/Mines (discovered 1 exit: [*Mat]) History --------- Turn | Location | Event 4 | -11/Scrapyard | Discovered new exit (range 15) 133 | -11/Scrapyard | Entered Materials 371 | -10/Materials | Discovered new exit (range 15) 544 | -10/Materials | Discovered new exit (range 13) 551 | -10/Materials | Build established: Scavenger-Mutant 760 | -10/Materials | Discovered new exit (range 5) 934 | -10/Materials | Core integrity fell below 50% 989 | -10/Materials | Discovered new exit (range 7) 1073 | -10/Materials | Entered Mines 1405 | -10/Mines | Discovered new exit (range 12) 1558 | -10/Mines | Discovered new exit (range 7) 1633 | -10/Mines | Entered Materials 1633 | -9/Materials | Evolved 2 slots: Utility x2 2354 | -9/Materials | Build established: Mutant 2521 | -9/Materials | Discovered new exit (range 12) 2657 | -9/Materials | Build established: Scavenger-Mutant 2867 | -9/Materials | Lost 3 parts (1p1n1u) 3169 | -9/Materials | Discovered new exit (range 8) 3187 | -9/Materials | Entered Mines 3234 | -9/Mines | Discovered new exit (range 10) 3346 | -9/Mines | Assembled infested the area 3371 | -9/Mines | Core integrity fell below 50% 3397 | -9/Mines | Core integrity fell below 20% 3407 | -9/Mines | A weapon hastily lodged in a ceiling crevice suddenly fell to the ground 3425 | -9/Mines | Destroyed 10 combat bots 3433 | -9/Mines | Lost 7 parts (1p1n2u3w) 3590 | -9/Mines | Destroyed by G-47 Trooper with Particle Gun Last Messages --------------- 03414_ The unstable cave ceiling collapses. 03414_ Acquired 2 matter. 03416_ The unstable cave ceiling collapses. 03418_ Acquired Aluminum Leg. 03421_ The unstable cave ceiling collapses. 03421_ Acquired Aluminum Leg. 03423_ The unstable cave ceiling collapses. 03429_ as-99606 destroyed. 03430_ The unstable cave ceiling collapses. 03435_ as-88907 destroyed. 03435_ R-06 Scavenger collects Hammer. 03436_ The unstable cave ceiling collapses. 03438_ Acquired 16 matter. 03450_ Acquired 14 matter. 03452_ Acquired 16 matter. 03465_ The unstable cave ceiling collapses. 03488_ as-76324 destroyed. 03491_ Acquired 14 matter. 03492_ The unstable cave ceiling collapses. 03582_ G-34 Mercenary destroyed. Map ----- +----------------------------------------------------+ | ????????????????# ??????????????????? | | ????????????????# ??????????????????? | | ???????????????## ??????????????????? | | ???????????????? ??????????? ??????? | | ???????????????? #???????? ????? | | ????????????????? ???????? #???? | | ????????????????? ##?????# #???? | | ?????????????????? #????## ##??? | | ?????????????????? ????# #??? | | ??????????????????? " ????? ##??? | | ??????????????????? #????? # #??? | | ???????????????????#=#????## #??? | | ???????????# ####### #????# #??? | | ???????????# ####?# #??? | | ???????????######### #### # % # #??? | | ??????###????????# ## ###??? | | ?????? ?????#### # ##?? | | ????# """????# # ### | | ????? """ ???# ## # ## | | ???????""" ??# ## / | | ????????? ### #### ## # # ## ## | | ??????????? ???# ###### ## #? | | ????????????#g#???## #????# ## #? | | ????????????#!#??## ##???## ##? | | ????????????# #?## ######### ##?? | | ????????????#@#?# ##??#####??? | | ????######### #?# ##????????? | | ????# ### #????????? | | ????# ##### #### #????????? | | ????# #???# ### ##????????? | | ????# #???# ## ###?????????? | | ????# #???# ## ##???????????? | | ????# ##??# ### #????????????? | | ???## ##?# #?## #????????????? | | ???# ### ##?## ### ##????????????? | | ???# #### #??###?????????????? | | ???# #??????????????????? | | ???# ######??????????????????? | | ???# ####???????????????????????? | | ???## ####??????????????????????????? | | ????####?????????????????????????????? | | ?????????????????????????????????????? | | ?????????????????????????????????????? | | ?????????????????????????????????????? | | ?????????????????????????????????????? | | ?????????????????????????????????????? | | ?????????????????????????????????????? | | ?????????????????????????????????????? | | | | | +----------------------------------------------------+ Best States ------------- Heat Dissipation 50 Energy Generation 14 Energy Capacity 250 Matter Stores 300 Matter Capacity 300 Sight Range 16 Terrain Scan Range 16 Terrain Scan Density 60 Armor Coverage 150 Weapon Shielding 33 Evasion (%) 40 Targeting Accuracy 5 Recoil Reduction 1 Item Schematics ----------------- Imp. Medium Laser | -9/Materials | Scanalyzed Robot Schematics ------------------ None Fabricated ------------ Nothing Alien Tech Used ----------------- None Achievements -------------- None Challenges ------------ None Game ------ Seed IntegrityRemoteSteel Manual? 0 Play Time 00:26:42 Cumulative 185.4 hours Start 2020.07.21 @ 18:54:54 End 2020.07.21 @ 19:18:27 Sessions 1 Manual Loads 0 Difficulty Rogue Special Mode None Game No. 232 Rogue 232 Adventurer 0 Explorer 0 Win Type - Total 10 Types 2/3/0/1/1/3/0 Lore% 93 Gallery% 91 Achievement% 72 Wizard Run 0 Options --------- ASCII 0 Keyboard 0 Movement Numpad Keybinds 0 Fullscreen 1 Font 24/Smallcaps Map View 76x50 Tactical HUD 1 Map Filters NONE Filters NONE Steam 1 RUN: 42659644-2666-4fbf-aa8b-9427a1fa0b90